Cogmind - Beta 15 @@@ ROGUE MODE // 2025.05.05 @ 20:48:08 Player: OctagonalPrism Result: Destroyed by G-34 Mercenary with Small Laser Performance ------------- Evolutions (0) 0 Regions Visited (1) 200 Robots Destroyed (17) 85 Value Destroyed (435) 435 Prototype IDs (1) 20 Alien Tech Used (0) 0 Bonus (0) 0 TOTAL SCORE: 740 Bonus ------- None Cogmind --------- Core Integrity 0/250 Matter 223/300 Energy 248/250 System Corruption 0% Temperature Cool (10) Movement Flying (37) Location -10/Materials Parts ------- > --- POWER (1) -------- Ion Engine > --- PROPULSION (2) --- Improved Flight Unit Improved Flight Unit > --- UTILITY (2) ------ Small Storage Unit > --- WEAPON (2) ------- (None) > --- INVENTORY (8) ---- Compact Wheel Improved Flight Unit Signal Interpreter Improved Terrain Scanner Hacking Suite Peak State ------------ > --- POWER ------------ Ion Engine > --- PROPULSION ------- Light Treads Improved Flight Unit > --- UTILITY ---------- Small Storage Unit Improved Terrain Scanner > --- WEAPON ----------- Assault Rifle Light Assault Rifle > --- INVENTORY -------- Ion Engine Light Treads Compact Wheel Hacking Suite [Rating: 11] Favorites ----------- Power Ion Engine Engine Ion Engine Propulsion Light Treads Treads Light Treads Wheel Compact Wheel Flight Unit Improved Flight Unit Utility Small Storage Unit Device Improved Terrain Scanner Storage Small Storage Unit Weapon Light Assault Rifle Ballistic Gun Light Assault Rifle Launcher Grenade Launcher Build | -11 -10 ------- Run | Yrd Mat Slots Evolved . | . . Power . | . . Propulsion . | . . Utility . | . . Weapon . | . . Parts Attached 15 | 7 8 Power 3 | 1 2 Engine 3 | 1 2 Core . | . . Reactor . | . . Propulsion 7 | 2 5 Treads 2 | . 2 Leg . | . . Wheel 2 | 2 . Hover . | . . Flight 3 | . 3 Utility 2 | 2 . Device 1 | 1 . Storage 1 | 1 . Processor . | . . Hackware . | . . Protection . | . . Artifact . | . . Weapon 3 | 2 1 Energy Gun . | . . Energy Cannon . | . . Ballistic Gun 2 | 2 . Ballistic Cannon . | . . Launcher 1 | . 1 Special Weapon . | . . Impact Weapon . | . . Slashing Weapon . | . . Piercing Weapon . | . . Special Melee Weapon . | . . Unidentified Prototypes 1 | . 1 Parts Lost 6 | . 6 Power 1 | . 1 Propulsion 2 | . 2 Utility . | . . Weapon 3 | . 3 Highest Loss Streak 5 | . 5 To Critical Strikes . | . . Average Backups 4 | 2 4 Power . | . . Propulsion 2 | 1 2 Utility 1 | . 1 Weapon . | . . Tool/Special . | . . Unused Backups 4 | . 4 Power 1 | . 1 Propulsion 1 | . 1 Utility 2 | . 2 Weapon . | . . Tool/Special . | . . Average Slot Usage (%) 89 | . 89 Engine 13 | . 13 Treads 12 | . 12 Wheel 7 | . 7 Flight 1 | . 1 Device 12 | . 12 Storage 14 | . 14 Ballistic Gun 25 | . 25 Peak Build Rating 11 | 9 11 Average Rating 8 | 5 8 On Entrance 4 | . 9 Naked Turns . | . . Heaviest Build 14 | 14 14 Greatest Support 26 | 26 26 Greatest Overweight (x) 4 | 1 4 Average Overweight (x) . | . . Largest Inventory Capacity 8 | 8 8 Average Capacity 7 | 7 8 Most Carried 7 | 3 7 Average Carried 4 | 2 4 Final Capacity 8 | 8 8 Final Carried 5 | 3 5 Class Distribution -------------------- 100% | Mutant Dominant Class ---------------- Mutant | -10/Materials Resources | -11 -10 ----------- Run | Yrd Mat Matter Collected 468 | 257 211 Remotely . | . . Salvage Created 448 | 13 435 Parts 31 | 5 26 Haulers Intercepted . | . . Recyclers Shooed . | . . Parts Field Recycled . | . . Retrieved Matter . | . . Parts Self-Destructed . | . . Prevented . | . . Kills | -11 -10 ------- Run | Yrd Mat Combat Hostiles Destroyed 12 | . 12 Guns 10 | . 10 AOE 2 | . 2 Classes Destroyed 6 | 1 5 Worker 1 | . 1 Tunneler 1 | 1 . Operator 2 | . 2 Watcher 1 | . 1 Swarmer 3 | . 3 Grunt 9 | . 9 Best Kill Streak 3 | 1 3 Combat Bots Only 3 | . 3 Max Kills in Single Turn 2 | 1 2 Gunslinging . | . . Exploded 1 | . 1 Melee . | . . Uniques/NPCs Destroyed . | . . Combat | -11 -10 -------- Run | Yrd Mat Hostile Shots Fired 83 | . 83 Missed 20 | . 20 Hits 63 | . 63 Projectile 63 | . 63 Damage Taken 959 | . 959 Core 260 | . 260 Absorbed by Shields . | . . Core Remaining (%) 100 | 100 . Volleys Fired 47 | 1 46 Largest 2 | 2 2 Hottest 50 | 40 50 Shots Fired 92 | 2 90 Gun 90 | 2 88 Cannon . | . . Launcher 2 | . 2 Special . | . . Kinetic 90 | 2 88 Thermal . | . . Explosive 2 | . 2 Electromagnetic . | . . Robot Hit Streak 13 | 1 13 Robot Miss Streak 5 | . 5 Penetration Max . | . . Secondary Targets 1 | . 1 Max Gunslinging Chain 1 | . 1 Shots Hit Robots 48 | 1 47 Core Hits 34 | 1 33 Critical Kills . | . . Critical Parts Destroyed . | . . Critical Strikes . | . . Melee Attacks . | . . Impact . | . . Slashing . | . . Piercing . | . . Sneak Attacks . | . . Combat Hostiles . | . . Follow-up Attacks . | . . Damage Inflicted 771 | 11 760 Guns 518 | 11 507 Cannons . | . . Explosions 250 | . 250 Melee . | . . Ramming 3 | . 3 Kinetic 518 | 11 507 Thermal 77 | . 77 Explosive 173 | . 173 Electromagnetic . | . . Impact . | . . Slashing . | . . Piercing . | . . Highest Corruption . | . . Average Corruption . | . . Corruption Purged . | . . Corruption Blocked . | . . Overload Shots . | . . Overflow Damage 25 | . 25 Projectiles . | . . Explosions 25 | . 25 Melee . | . . Knockbacks . | . . Impact . | . . Kinetic . | . . Secondary . | . . Self-Inflicted Damage 201 | . 201 Shots 4 | . 4 Rammed 1 | . 1 Targets Rammed 1 | . 1 Kicked . | . . Crushed . | . . Highest Temperature 41 | . 41 Average Temperature 13 | . 13 Received Heat Transfer 375 | . 375 Siege Activations . | . . Martial Activations . | . . Shielding Activations . | . . Robots Disrupted . | . . Combat Hostiles . | . . Robots Corrupted . | . . Combat Hostiles . | . . Parts Fried . | . . Impact Corruptions . | . . Robots Melted . | . . Combat Hostiles . | . . Parts Melted . | . . Heat Transferred 50 | . 50 Parts Sabotaged . | . . Parts Stolen . | . . Parts Stripped . | . . Power Chain Reactions . | . . Alert | -11 -10 ------- Run | Yrd Mat Maximum Alert Level 1 | . 1 Low Security (%) 83 | 100 82 Level 1 16 | . 17 Level 2 . | . . Level 3 . | . . Level 4 . | . . Level 5 . | . . High Security . | . . Max Security . | . . Peak Influence 224 | 5 224 Initial . | . . Average 103 | . 111 Influence Increases 578 | 5 573 Destroy 0b10 Robot/C 240 | . 240 Destroy 0b10 Robot/NC 25 | 5 20 Destroy Leader 52 | . 52 Successful Hack 17 | . 17 Select Force Hacks 30 | . 30 Disable Machine 45 | . 45 Destroy Structure 49 | . 49 Lose Combat Pursuer 120 | . 120 Influence Decreases 366 | 5 361 Time Decay 306 | 5 301 Lost Part 60 | . 60 Squads Dispatched 4 | . 4 Investigation 2 | . 2 Extermination . | . . Reinforcement 2 | . 2 Assault . | . . Garrison . | . . Intercept . | . . Searches Triggered . | . . Construction Impeded . | . . Haulers Reinforced . | . . Active Scanning Responses . | . . Cargo Convoy Interrupts . | . . Stealth | -11 -10 --------- Run | Yrd Mat Distress Signals . | . . Communications Jammed . | . . Distress Signals . | . . Times Spotted 24 | . 24 Peak Tracking Total 5 | . 5 Tactical Retreats 4 | . 4 Traps | -11 -10 ------- Run | Yrd Mat Traps Triggered 1 | . 1 Indirectly . | . . Trap Hack Attempts . | . . Triggered . | . . Disarmed . | . . Reprogrammed . | . . Reused . | . . Traps Extracted . | . . Installed . | . . Triggered . | . . Machines | -11 -10 ---------- Run | Yrd Mat Machines Disabled 3 | . 3 Max in Single Turn 2 | . 2 Machines Repaired . | . . Machines Dismantled . | . . Machines Sabotaged . | . . Overloaded Fab Kills . | . . Hacking | -11 -10 --------- Run | Yrd Mat Machines Accessed 7 | . 7 Terminals 5 | . 5 Fabricators . | . . Repair Stations 1 | . 1 Recycling Units 1 | . 1 Scanalyzers . | . . Garrison Access . | . . Total Hacks 20 | . 20 Successful 11 | . 11 Failed 9 | . 9 Catastrophic 1 | . 1 Database Lockouts . | . . Manual 15 | . 15 Terminals 17 | . 17 Fabricators . | . . Repair Stations 2 | . 2 Recycling Units 1 | . 1 Scanalyzers . | . . Garrison Access . | . . Terminal Hacks 5 | . 5 Record 1 | . 1 Emergency Access Points 1 | . 1 Investigation Status 1 | . 1 Zone Layout 2 | . 2 Fabricator Hacks . | . . Repair Station Hacks . | . . Recycling Unit Hacks . | . . Scanalyzer . | . . Garrison Access Hacks . | . . Unauthorized Hacks 6 | . 6 Terminals 4 | . 4 Track 1 | . 1 Botnet 2 | . 2 Operators 1 | . 1 Fabricators . | . . Repair Stations 1 | . 1 Mechanics 1 | . 1 Recycling Units 1 | . 1 Tunnel 1 | . 1 Scanalyzers . | . . Garrison Access . | . . Data Cores Recovered . | . . Used . | . . Hacking Detections 5 | . 5 Full Trace Events 1 | . 1 Feedback Events . | . . Feedback Blocked . | . . Robot Schematics Acquired . | . . Robots Built . | . . Authchips . | . . Time . | . . Total Robot Build Rating . | . . Part Schematics Acquired . | . . Parts Built . | . . Authchips . | . . Time . | . . Total Part Build Rating . | . . Parts Repaired . | . . Time . | . . Parts Recycled . | . . Recycled Matter . | . . Retrieved Matter . | . . Retrieved Components . | . . Parts Scanalyzed . | . . Part Schematics Acquired . | . . Parts Damaged . | . . Bothacking | -11 -10 ------------ Run | Yrd Mat Used RIF Installer . | . . Robots Hacked . | . . Non-combat . | . . Combat . | . . Robot Hacks Applied . | . . Relay Couplers Released . | . . Fabnet Peak Effective % . | . . Robots Rewired . | . . Allies Hacked . | . . Hacks Repelled . | . . Allies | -11 -10 -------- Run | Yrd Mat Total Allies . | . . Largest Group . | . . Highest-Rated Group . | . . Highest-Rated Ally . | . . Total Orders . | . . Ally Attacks . | . . Total Damage . | . . Kills . | . . Allies Corrupted . | . . Allies Melted . | . . Intel | -11 -10 ------- Run | Yrd Mat Active Infowar (turns) 788 | 5 783 Terrain 788 | 5 783 Robot Analysis Total . | . . Derelict Logs Recovered . | . . Drone Launches . | . . Drone Recoveries . | . . Exploration | -11 -10 ------------- Run | Yrd Mat Turns Passed 937 | 65 872 Spaces Moved 630 | 53 577 Core 37 | 2 35 Treads 147 | . 147 Legs . | . . Wheels 351 | 51 300 Hover . | . . Flight 95 | . 95 Fastest Speed 37 | 50 37 Average Speed 113 | 89 115 Slowest Speed 250 | 100 250 Overloaded Moves . | . . Propulsion Burnouts . | . . Robots Hopped . | . . Potential Cave-ins . | . . Cave-ins Triggered . | . . Exploration Rate (%) 37 | 4 70 Regions Visited 1 Branch Regions . Pre-discovered Areas 1 | . 1 Known Exits Taken . | . . Unknown Exits Taken 1 | 1 . Scrap Searched . | . . Spaces Dug . | . . Terrain Destroyed 61 | . 61 Melee . | . . Projectile . | . . AOE 61 | . 61 Terrain Rammed . | . . Walls Destroyed . | . . Machines Disabled . | . . Actions | -11 -10 --------- Run | Yrd Mat Total 766 | 65 701 Wait 54 | 2 52 Move 629 | 52 577 Hop . | . . Pick Up 10 | 3 7 Fast Attach 11 | 7 4 Attach 5 | . 5 Detach 3 | . 3 Swap 2 | . 2 Drop 4 | . 4 Fire 47 | 1 46 Melee . | . . Ram . | . . Kick . | . . Crush 1 | . 1 Escape Stasis . | . . Rewire . | . . Trap . | . . Miscellaneous . | . . Route ------- -11/Scrapyard -10/Materials (discovered 3 exits: [*Mat x2] / [*Min]) History --------- Turn | Location | Event 28 | -11/Scrapyard | Discovered new exit (range 16) 66 | -11/Scrapyard | Entered Materials 179 | -10/Materials | Discovered new exit (range 16) 267 | -10/Materials | Discovered new exit (range 14) 311 | -10/Materials | Build established: Mutant 346 | -10/Materials | Discovered new exit (range 7) 512 | -10/Materials | Core integrity fell below 50% 873 | -10/Materials | Core integrity fell below 20% 901 | -10/Materials | Lost 5 parts (1p1n3w) 938 | -10/Materials | Destroyed by G-34 Mercenary with Small Laser Last Messages --------------- 00864_ G-34 Mercenary destroyed. 00864_ Ion Engine destroyed. 00864_ Destroyed Ion Engine. 00864_ G-34 Mercenary destroyed. 00868_ K-01 Serf collects debris. 00868_ Lgt. Assault Rifle destroyed. 00870_ Grenade Launcher destroyed. 00871_ K-01 Serf collects debris. 00889_ Acquired 13 matter. 00896_ Acquired Imp. Flight Unit. 00905_ Triggered Blade Trap. 00905_ Massive razor-sharp blades shoot up from within the floor. 00905_ Ion Engine severed. 00905_ Imp. Flight Unit severed. 00905_ Acquired Ion Engine. 00908_ Acquired Imp. Flight Unit. 00912_ R-06 Scavenger collects Imp. Flight Unit. 00934_ Acquired Imp. Flight Unit. 00937_ Dropped Lgt. Treads. Map ----- +----------------------------------------------------+ | | | | | | | | | | | | | | | | | | | | | | | | | | | | | | | | | ????????????????#??#?????????????????????????????? | | ?########?????#???????????????###########????????? | | ### #?????????????????????# #????????? | | ####################### """ """ #????????? | | + """%""" #????????? | | ###### ################ """ """ #????????? | | ### #????# #????#?????##### #????????? | | ##########???# #??#???##### # #??? ????? | | ""### ??# #??#???#= < # #????????? | | !!"## [ ??# #??????# @ # #? ??????? | | ""#? ?# #???#??#]] #####+#####????????? | | # """ ?# ##?????#]] #######+## | | < # """ # ###????#!! T | | # """ # #????#!! t ########## | | # """ + #???######g ###+################ | | ## """ # ########## ## ## # | | #?# # # """ # ## # ## """ """ # | | #######+#### # "T" %+ ## # # ## """ """ # | | # # ##### ?## """ """ # | | + # #?? ????# # | | ########## ###?#????# # | | ##+#### ######??????## #???????# # | | # #?# #??????#?????# #???????# # | | # #?# ##???????????# " #?#?????#######+### | | + ### ##########??# ######### | | # ## ! #??# """ | | ### ## ######+### "T" | | ??# ## ! # # % % """ """ " | | ??# ## % " # """ # """ """ " | | ??###### [ +! """"" # """ """ " | | ######### " "Y" # """"" + | | !# !% """ # """"" # | | ! # # = # """ # """ """ """ " | | !+ ########### # """ """ """ " | +----------------------------------------------------+ Best States ------------- Heat Dissipation 25 Energy Generation 10 Energy Capacity 250 Matter Stores 300 Matter Capacity 300 Sight Range 16 Terrain Scan Range 16 Terrain Scan Density 10 Evasion (%) 62 Recoil Reduction 2 Item Schematics ----------------- None Robot Schematics ------------------ None Fabricated ------------ Nothing Repaired ---------- Nothing Alien Tech Used ----------------- None Achievements -------------- None Challenges ------------ None Game ------ Seed PropulsionBlanketBank Manual? 0 Play Time 00:15:32 Cumulative 202.4 hours Start 2025.05.05 @ 20:35:36 End 2025.05.05 @ 20:48:08 Sessions 1 Manual Loads 0 Difficulty Rogue Special Mode None Game No. 160 Rogue 160 Adventurer 0 Explorer 0 Win Type - Total 4 Types 2/0/1/1/0/0/0/0/0/0 Lore% 63 Gallery% 64 Achievement% 55 Wizard Run 0 Options --------- Layout 2 ASCII 0 Keyboard 0 Movement Numpad Keybinds 0 Fullscreen 1 Font 16/Terminus Map View 55x47 Zoom Use 0% Tactical HUD 1 Map Filters NONE Filters NONE Steam 1 RUN: 5857dfdc-a4ff-4f37-9547-b67541c33530